bitfinex/quotes_ETHUSD_20220213
["timestamp","ask_amount","ask_price","bid_price","bid_amount"]
[1644711981894,1.46293968,2913.6,2913.1,0.495]
[1644711982392,1.46293968,2913.6,2913.1,0.795]
[1644711982595,1.46015761,2913.5,2913.1,1.095]
[1644711982792,1.46015761,2913.4,2913.1,1.095]
[1644711982992,0.00278207,2913.9,2913.1,1.095]
[1644711982993,0.00278207,2913.9,2913.1,0.495]
[1644711983197,1.46292498,2913.9,2913.1,0.795]
[1644711983393,0.00645466,2913.4,2913.2,0.84505958]
[1644711983594,0.00645466,2913.4,2913.3,0.495]
[1644711983794,1.46659099,2913.4,2913.3,0.495]
[1644711984394,1.13318207,2913.9,2913.3,0.795]
[1644711984597,0.00645466,2913.5,2913.3,0.495]
[1644711984839,1.46013156,2913.4,2913.3,0.795]
[1644711985038,1.46013156,2913.4,2913.3,0.495]
[1644711985241,1.46013156,2913.4,2913.3,0.795]
[1644711985643,0.02859682,2913.9,2913.3,0.795]
[1644711985644,0.00278207,2913.9,2913.3,0.795]
[1644711985846,0.01017188,2913.5,2913.3,0.495]
[1644711986243,0.01017188,2913.5,2913.3,0.795]
[1644711986445,0.01017188,2913.5,2913.3,0.495]
[1644711986861,0.00278207,2913.9,2913.3,0.495]
[1644711987045,0.01017181,2913.5,2913.3,1.35293]
[1644711987645,0.01017181,2913.5,2913.3,1.65293]
[1644711987846,0.01017181,2913.5,2913.3,2.65293]
[1644711988046,0.00278207,2913.9,2913.3,1.65293]
[1644711988247,0.01017181,2913.5,2913.4,1.0]
[1644711988491,0.01017181,2913.5,2913.4,0.495]
[1644711988688,1.47029871,2913.5,2913.4,0.495]
[1644711988987,0.01017181,2913.5,2913.4,0.495]
[1644711989187,0.00278207,2913.9,2913.4,0.495]
[1644711989588,0.01017175,2913.6,2913.4,0.495]
[1644711990187,0.01017175,2913.6,2913.5,0.3]
[1644711990389,0.00278207,2913.9,2913.5,0.795]
[1644711990592,0.01017169,2913.6,2913.5,0.495]
[1644711990789,0.01017169,2913.6,2913.5,0.795]
[1644711990993,0.01017169,2913.6,2913.5,0.495]
[1644711991590,0.00278207,2913.9,2913.5,0.495]
[1644711991795,7.48,2914.0,2913.5,0.495]
[1644711991994,0.01016441,2913.7,2913.5,0.495]
[1644711992844,0.00278207,2913.9,2913.5,0.495]
[1644711993145,0.01016434,2913.7,2913.5,0.495]
[1644711993550,0.01016434,2913.7,2913.3,1.0]
[1644711993745,0.01016434,2913.7,2913.3,0.3]
[1644711994045,0.00278207,2913.9,2913.4,0.495]
[1644711994249,0.01016447,2913.6,2913.5,0.495]
[1644711995146,0.00278207,2913.9,2913.5,0.495]
[1644711995345,7.48,2914.0,2913.5,0.495]
[1644711995544,0.01016441,2913.7,2913.5,0.495]
[1644711996189,0.01016441,2913.7,2913.3,1.0]
[1644711996385,0.00278207,2913.9,2913.2,0.6]
[1644711996588,0.00278207,2913.9,2913.2,0.3]
[1644711996787,0.01016434,2913.7,2913.1,1.095]
[1644711997692,0.00278207,2913.9,2913.1,1.095]
[1644711997891,0.0101646,2913.5,2913.1,1.095]
[1644711998892,0.00278207,2913.9,2913.1,1.095]
[1644711999094,0.01016472,2913.4,2913.1,1.095]
[1644711999494,0.01016472,2913.4,2912.7,0.4216]
[1644711999767,0.01016472,2913.4,2912.7,0.6666]
[1644712000159,3.96978805,2913.7,2912.7,0.6666]
[1644712000360,0.01016504,2913.2,2912.7,0.6666]
[1644712000561,0.01016504,2913.2,2912.7,0.9666]
[1644712000860,0.01016504,2913.2,2912.7,0.6666]
[1644712001064,0.01016504,2913.2,2912.3,2.58404815]
[1644712001065,0.01016504,2913.2,2912.3,0.50516815]
[1644712001366,3.61771851,2913.4,2912.3,0.495]
[1644712001367,7.6516,2913.3,2912.3,0.495]
[1644712001663,0.01016517,2913.1,2912.3,0.50516792]
[1644712002461,3.51070726,2913.2,2912.3,0.495]
[1644712002663,3.51070726,2913.2,2912.3,0.01016737]
[1644712002664,0.01016549,2912.8,2912.3,0.01016737]
[1644712003061,0.1716,2912.7,2912.3,0.01016737]
[1644712003690,0.1716,2912.7,2912.0,0.25]
[1644712003896,0.0101654,2912.7,2912.3,0.01016693]
[1644712004892,0.1716,2912.8,2911.5,3.1137125]
[1644712005092,0.0101654,2912.7,2912.3,0.01016693]
[1644712005693,0.00882447,2912.7,2912.3,0.01016693]
[1644712006093,0.1716,2912.8,2911.9,1.095]
[1644712006292,3.2389,2912.9,2911.9,1.2666]
[1644712007351,3.2389,2912.9,2912.2,0.85825]
[1644712007550,0.00278207,2913.1,2912.3,0.495]
[1644712007749,0.00278207,2913.1,2912.3,0.9666]
[1644712008348,0.00278207,2913.1,2912.3,1.13869129]
[1644712008748,0.00278207,2913.1,2912.4,0.00372205]
[1644712008948,0.00278207,2913.1,2912.6,0.85814]
[1644712009151,0.00278207,2913.1,2912.6,1.35314]
[1644712009846,0.00980688,2913.0,2912.6,1.35314]
[1644712010249,0.00980688,2913.0,2912.6,1.65314]
[1644712010449,0.00980688,2913.0,2912.7,0.3]
[1644712010649,0.00980688,2913.0,2912.8,0.495]
[1644712010849,0.00278207,2913.1,2912.8,0.495]
[1644712011090,3.2826,2913.2,2912.8,0.495]
[1644712011091,0.00980688,2913.0,2912.8,0.495]
[1644712012090,3.28538207,2913.2,2912.8,0.495]
[1644712012295,0.00980682,2913.0,2912.8,0.495]
[1644712013295,3.28538207,2913.2,2912.8,0.495]
[1644712013496,0.00980682,2913.0,2912.8,0.495]
[1644712014394,3.28538207,2913.2,2912.8,0.495]
[1644712014840,0.00961353,2913.0,2912.8,0.495]
[1644712015640,3.28538207,2913.2,2912.8,0.495]
[1644712015842,0.00961353,2913.0,2912.8,0.495]
[1644712016849,3.28538207,2913.2,2912.8,0.795]
[1644712017042,0.00961353,2913.0,2912.8,0.795]
[1644712018048,3.28538207,2913.2,2912.8,0.795]
[1644712018490,0.00962658,2913.0,2912.8,0.795]
[1644712019292,3.28538207,2913.2,2912.8,0.795]
[1644712019496,0.00962658,2913.0,2912.8,0.795]
[1644712020494,3.28538207,2913.2,2912.8,0.795]
[1644712020696,0.00962658,2913.0,2912.8,0.795]
[1644712021696,3.28538207,2913.2,2912.8,0.795]
[1644712021896,0.0096257,2913.0,2912.8,0.795]
[1644712022100,0.0096257,2913.0,2912.8,0.495]
[1644712022946,3.28538207,2913.2,2912.8,0.495]
[1644712023141,0.0096257,2913.0,2912.8,0.795]
[1644712023541,0.0096257,2913.0,2912.8,1.095]
[1644712024845,0.0096257,2913.0,2912.8,0.495]
[1644712025243,3.28538207,2913.2,2912.8,0.495]
[1644712025643,0.00962576,2913.0,2912.8,0.495]
[1644712026090,0.00962576,2913.0,2912.5,0.495]
[1644712026287,0.00962576,2913.0,2912.5,0.795]
[1644712026489,3.28538207,2913.2,2912.5,1.095]
[1644712026691,0.00962592,2912.9,2912.5,1.095]
[1644712026891,0.00962592,2912.9,2912.5,2.12525129]
[1644712027091,0.00962592,2912.9,2912.7,0.17163]
[1644712027299,0.00962592,2912.9,2912.8,0.495]
[1644712027695,0.00278207,2913.8,2912.8,0.795]
[1644712027995,0.00962581,2913.0,2912.8,1.795]
[1644712028197,0.00962581,2913.0,2912.8,2.095]
[1644712028395,0.00827532,2913.0,2912.8,2.095]
[1644712028596,0.00827532,2913.0,2912.9,0.85809]
[1644712028800,0.00278207,2913.8,2913.0,2.65]
[1644712028997,0.00278207,2913.8,2913.1,0.66655]
[1644712028998,3.50278207,2913.8,2913.1,0.66655]
[1644712029198,3.50278207,2913.8,2913.2,1.71575]
[1644712029199,0.00278207,2913.8,2913.2,1.71575]
[1644712029397,0.00278207,2913.8,2913.3,0.495]
[1644712029848,0.00278207,2913.8,2913.3,1.495]
[1644712030241,1.46282064,2913.8,2913.3,1.495]
[1644712030440,1.46282064,2913.8,2913.3,0.495]
[1644712031242,4.84652133,2913.8,2912.9,0.495]
[1644712031443,5.01812133,2913.8,2912.6,1.85818]
[1644712031643,1.46003857,2913.7,2912.7,0.3]
[1644712031944,3.52106744,2913.6,2912.7,0.3]
[1644712032140,1.12274137,2913.4,2912.7,0.3]
[1644712032351,0.00278207,2913.3,2912.7,0.3]
[1644712032747,0.01016504,2913.2,2912.7,0.31016695]
[1644712033591,0.00278207,2913.5,2912.7,0.3]
[1644712033994,0.010165,2913.1,2912.7,0.31016673]
[1644712034793,0.00278207,2913.5,2912.7,0.3]
[1644712035196,0.01016489,2913.1,2912.8,0.495]
[1644712035395,0.1716,2913.8,2913.1,0.85791]
[1644712035396,0.00278207,2913.6,2913.1,0.85791]
[1644712035595,0.00278207,2913.7,2913.2,0.495]
[1644712035794,0.00278207,2913.8,2913.2,0.495]
[1644712035994,0.00278207,2913.8,2913.2,0.795]
[1644712036594,0.00278207,2913.8,2913.2,1.65294]
[1644712036794,0.00278207,2913.8,2913.2,1.795]
[1644712037248,0.00278207,2913.8,2913.2,0.795]
[1644712037443,0.01016447,2913.6,2913.2,1.795]
[1644712037748,0.01016447,2913.6,2913.3,1.71576]
[1644712037944,0.00278207,2913.8,2913.5,2.65]
[1644712038148,7.48,2914.5,2913.6,3.6716]
[1644712038348,7.48,2914.5,2914.1,6.185]
[1644712038349,0.0039094,2914.4,2914.1,6.185]
[1644712038543,7.48,2914.5,2914.2,0.495]
[1644712038743,7.48,2914.5,2914.3,0.8575]
[1644712038944,0.0039094,2915.0,2914.4,0.495]
[1644712041192,0.98551142,2914.9,2914.4,0.495]
[1644712041694,0.98551142,2914.9,2914.1,0.495]
[1644712041695,0.89159364,2914.4,2914.1,0.495]
[1644712042500,0.90176232,2914.4,2914.1,0.495]
[1644712042698,0.01016868,2914.4,2914.1,0.495]
[1644712043299,0.1754094,2915.0,2914.1,0.495]
[1644712043501,0.01016868,2914.4,2914.1,0.495]
[1644712044203,0.01016868,2914.4,2914.0,0.01017023]
[1644712044402,0.01016868,2914.4,2913.7,0.25]
[1644712044403,0.0039094,2914.4,2913.7,0.25]
[1644712044601,0.1715,2914.3,2913.3,2.21066]
[1644712044842,0.0039094,2914.2,2914.0,0.01017023]
[1644712045048,7.48,2914.3,2914.0,0.01017023]
[1644712045453,7.48,2914.3,2914.0,7.023e-05]
[1644712045454,4.99861952,2914.1,2914.0,7.023e-05]
[1644712045651,5.77011952,2914.1,2914.0,7.023e-05]
[1644712045850,5.77011952,2914.1,2912.2,3.5]
[1644712045851,0.0008,2913.8,2912.2,3.5]
[1644712046053,4.99861952,2913.2,2911.9,0.4216]
[1644712046249,4.99861952,2913.2,2912.0,3.5]
[1644712046449,1.08073439,2912.6,2911.9,0.25]
[1644712046646,0.1716,2913.1,2911.9,0.4216]
[1644712047047,0.1716,2913.6,2911.9,0.4216]
[1644712047246,1.46427954,2913.5,2912.1,0.00986699]
[1644712047448,0.1716,2913.4,2912.1,0.00986699]
[1644712047647,0.8741118,2913.2,2912.1,0.00986699]
[1644712047847,0.1716,2913.1,2912.1,0.00986699]
[1644712048254,0.94193245,2912.7,2911.9,0.4216]
[1644712048493,0.94193245,2912.7,2912.5,0.00986651]
[1644712049094,0.1716,2912.9,2912.5,0.00986651]
[1644712049295,0.1716,2912.9,2911.9,1.28]
[1644712049497,0.1716,2912.9,2912.0,0.17166]
[1644712049697,0.1716,2912.9,2912.5,0.00986657]
[1644712049899,3.3495,2913.0,2912.5,0.00986657]
[1644712050098,4.49992426,2913.0,2912.5,0.00986657]
[1644712050499,4.49992426,2913.0,2912.0,0.66666]
[1644712050500,4.49992426,2913.0,2912.1,1.71653]
[1644712050702,4.49992426,2913.0,2912.1,2.38313]
[1644712050898,4.49992426,2913.0,2912.6,0.00961459]
[1644712050899,3.3495,2913.0,2912.6,0.00961459]
[1644712051701,3.3495,2913.0,2912.1,2.38313]
[1644712051900,3.3495,2913.0,2912.7,0.00961454]
[1644712052946,3.3495,2913.0,2912.3,0.1716]
[1644712053145,3.3495,2913.0,2912.7,0.00961448]
[1644712054048,3.3495,2913.0,2912.2,0.1716]
[1644712054446,3.3495,2913.0,2912.7,0.00963145]
[1644712055246,3.3495,2913.0,2912.2,1.1716]
[1644712055647,3.3495,2913.0,2912.7,0.00963145]
[1644712056494,3.3495,2913.0,2912.2,1.1716]
[1644712056694,3.3495,2913.0,2912.7,0.00963145]
[1644712057701,3.3495,2913.0,2912.2,1.1716]
[1644712057901,3.3495,2913.0,2912.7,0.0096303]
[1644712058902,3.3495,2913.0,2912.3,0.1716]
[1644712059106,3.3495,2913.0,2912.7,0.0096303]
[1644712059505,1.11316846,2912.8,2912.7,0.0096303]
[1644712060142,1.11316846,2912.8,2911.8,0.495]
[1644712060345,1.11316846,2912.8,2912.6,0.00963041]
[1644712060543,3.3495,2913.0,2912.6,0.00963041]
[1644712061343,3.3495,2913.0,2911.9,0.1716]
[1644712061544,3.3495,2913.0,2911.8,1.65343]
[1644712061545,1.14960216,2912.7,2911.8,1.95343]
[1644712061744,1.14960216,2912.7,2911.8,1.095]
[1644712062153,3.75557079,2912.6,2911.7,0.0030183]
[1644712062348,3.75557079,2912.6,2911.5,0.0030183]
[1644712062746,3.75557079,2912.6,2912.0,0.00963116]
[1644712063247,0.1716,2912.6,2912.0,0.00963116]
[1644712063494,3.64991069,2912.9,2912.0,0.00963116]
[1644712063700,3.64991069,2912.9,2911.7,0.0030183]
[1644712063701,3.47831069,2912.9,2911.7,0.0030183]
[1644712063896,0.1716,2912.8,2911.7,0.0030183]
[1644712064096,3.47831069,2912.9,2912.2,0.00963099]
[1644712064296,0.85936996,2912.9,2912.2,0.00963099]
[1644712064697,3.37969483,2912.8,2912.2,0.00963099]
[1644712064996,3.37969483,2912.8,2911.8,0.7980183]
[1644712065198,3.37969483,2912.8,2912.4,0.00963076]
[1644712065396,0.85936996,2912.9,2912.4,0.00963076]
[1644712066202,0.85936996,2912.9,2911.8,2.0980183]
[1644712066399,0.85785368,2912.9,2912.5,0.00963065]
[1644712067241,0.85785368,2912.9,2912.1,0.85833]
[1644712067845,3.3495,2913.0,2912.6,0.00963059]
[1644712068645,3.3495,2913.0,2912.2,0.495]
[1644712068852,3.3495,2913.0,2912.7,0.00963044]
[1644712069750,3.3495,2913.0,2912.6,0.495]
[1644712069948,3.3495,2913.0,2912.7,0.50463039]
[1644712070145,3.3495,2913.0,2912.8,0.495]
[1644712070347,1.4145094,2913.6,2912.8,0.495]
[1644712070647,0.93141627,2913.5,2912.8,0.495]
[1644712070846,0.0039094,2913.4,2912.9,0.85811]
[1644712071294,0.0039094,2913.4,2913.0,0.00963005]
[1644712072100,0.0039094,2913.4,2912.9,0.85811]
[1644712072301,0.0039094,2913.6,2912.9,0.85811]
[1644712072498,0.1724,2913.8,2913.1,0.00962998]
[1644712072499,0.0039094,2913.7,2913.1,0.00962998]
[1644712072899,1.05437379,2913.4,2913.1,0.00962998]
[1644712073399,1.05437379,2913.4,2912.8,1.095]
[1644712073599,1.05437379,2913.4,2913.1,0.00962993]
[1644712074603,1.05437379,2913.4,2912.8,1.095]
[1644712074843,1.05437379,2913.4,2913.1,0.00962993]
[1644712075844,1.05437379,2913.4,2912.9,0.1716]
[1644712076045,1.05437379,2913.4,2913.1,0.00962988]
[1644712076446,0.1755094,2913.7,2913.1,0.00962988]
[1644712077046,0.1755094,2913.7,2913.1,0.495]
[1644712077248,0.1755094,2913.7,2913.3,0.00962972]
[1644712077451,0.1763094,2913.8,2913.3,0.00962972]
[1644712077659,0.1724,2913.8,2913.4,0.495]
[1644712078495,0.1724,2913.8,2913.5,0.0096295]
[1644712078696,0.1724,2913.8,2913.5,0.5046295]
[1644712079493,0.1724,2913.8,2913.5,0.495]
[1644712079694,0.1724,2913.8,2913.5,0.50462943]
[1644712080296,0.1724,2913.8,2913.5,1.27619943]
[1644712080495,0.1724,2913.8,2913.5,1.26657]
[1644712080700,0.1724,2913.8,2913.5,2.26657]
[1644712080901,0.1724,2913.8,2913.5,2.27619943]
[1644712081700,0.1724,2913.8,2913.5,2.26657]
[1644712082004,0.1724,2913.8,2913.5,2.44140012]
[1644712083046,0.1724,2913.8,2913.5,1.83817]
[1644712083249,0.0008,2913.8,2913.5,1.4982301]
[1644712083450,0.0008,2913.8,2913.5,0.4982301]
[1644712084248,0.0008,2913.8,2913.5,0.495]
[1644712084449,0.0008,2913.8,2913.5,0.50462223]
[1644712085149,0.0008,2913.8,2913.5,0.00962223]
[1644712085352,0.0008,2913.8,2913.0,0.6666]
[1644712085550,0.97437661,2913.5,2913.0,0.1716]
[1644712086496,0.0008,2913.8,2913.0,0.1716]
[1644712086696,0.1724,2913.8,2913.0,0.1716]
[1644712086896,0.0039094,2913.7,2913.1,0.00962267]
[1644712087098,0.1716,2913.6,2913.1,0.00962267]
[1644712087310,2.58262538,2913.5,2913.1,0.00962267]
[1644712087504,4.17283951,2913.4,2913.1,0.00962267]
[1644712087902,4.17283951,2913.4,2912.5,0.25]
[1644712087903,1.00475743,2913.0,2912.5,0.25]
[1644712088104,1.00475743,2913.0,2912.2,0.1716]
[1644712088903,3.33031002,2913.2,2912.2,0.1716]
[1644712089103,1.1967,2913.3,2912.2,0.1716]
[1644712089302,1.1967,2913.3,2912.5,0.00962339]
[1644712089751,3.35520765,2913.2,2912.5,0.00962339]
[1644712089946,3.40369127,2913.2,2912.5,0.00962339]
[1644712090141,0.1716,2913.1,2912.5,0.00962339]
[1644712090341,1.1517965,2913.0,2912.1,1.4628]
[1644712090547,3.54708934,2913.2,2912.7,0.00963037]
[1644712090742,1.1967,2913.3,2912.7,0.00963037]
[1644712091544,0.98691547,2913.0,2912.2,0.1716]
[1644712091745,1.1967,2913.3,2912.9,0.0096302]
[1644712092748,1.1967,2913.3,2912.4,0.495]
[1644712093048,1.1334909,2913.1,2913.0,0.00963009]
[1644712093894,4.64247447,2913.1,2912.4,0.495]
[1644712094094,4.64247447,2913.1,2912.9,0.00962245]
[1644712094294,1.1334909,2913.1,2912.9,0.00962245]
[1644712095100,1.1334909,2913.1,2912.4,0.495]
[1644712095295,1.1334909,2913.1,2912.9,0.00962251]
[1644712096298,1.1334909,2913.1,2912.5,0.06225197]
[1644712096498,1.1334909,2913.1,2912.9,0.00962251]
[1644712096697,1.1967,2913.3,2912.9,0.00962251]
[1644712097657,1.1967,2913.3,2913.0,0.00962292]
[1644712097850,2.38736631,2913.3,2913.0,0.00962292]
[1644712098452,2.38604908,2913.3,2913.0,0.00962292]
[1644712098650,2.38604908,2913.3,2912.5,0.06225197]
[1644712098851,2.38604908,2913.3,2913.0,0.00962286]
[1644712099454,3.40225118,2913.2,2913.0,0.00962286]
[1644712099655,3.57385118,2913.2,2913.0,0.00962286]
[1644712099853,3.57385118,2913.2,2912.5,0.06225197]
[1644712100053,3.57385118,2913.2,2913.0,0.00962292]
[1644712100996,3.57385118,2913.2,2912.5,0.06225197]
[1644712101201,1.06039528,2913.1,2912.5,0.06225197]
[1644712101397,1.06039528,2913.1,2913.0,0.00962287]
[1644712101998,4.5532718,2913.1,2913.0,0.00962287]
[1644712102196,4.5532718,2913.1,2912.5,0.06225197]
[1644712102399,3.49287652,2913.1,2912.5,0.06225197]
[1644712102598,3.49287652,2913.1,2912.9,0.00962293]
[1644712102799,3.54486789,2913.2,2912.9,0.00962293]
[1644712103600,3.33838302,2913.2,2912.9,0.00962293]
[1644712103802,3.31175857,2913.2,2912.9,0.00962293]
[1644712103999,2.15085635,2913.3,2912.9,0.00962293]
[1644712104600,2.15085635,2913.3,2912.5,0.06225197]
[1644712104844,2.15085635,2913.3,2913.0,0.00962288]
[1644712105249,1.19538277,2913.3,2913.0,0.00962288]
[1644712105452,0.0039094,2913.7,2913.0,0.00962288]
[1644712105659,0.0039094,2913.7,2913.0,0.50462288]
[1644712105853,0.0008,2913.8,2913.0,0.795]
[1644712106050,0.0047094,2913.8,2913.0,1.095]
[1644712106250,0.0047094,2913.8,2913.2,0.00962261]
[1644712106451,0.0047094,2913.8,2913.3,0.495]
[1644712106850,0.0047094,2913.8,2913.3,0.795]
[1644712107251,0.0008,2913.8,2913.4,0.00962238]
[1644712107451,0.0008,2913.8,2913.4,0.50462238]
[1644712108356,0.0008,2913.8,2913.4,0.495]
[1644712108592,0.0008,2913.8,2913.5,0.00962231]
[1644712108792,0.0008,2913.8,2913.6,0.495]
[1644712108992,0.0008,2913.8,2913.7,0.85779]
[1644712109197,0.0008,2913.8,2913.7,1.52439]
[1644712109396,0.0008,2913.8,2913.7,2.82439]
[1644712112450,0.0008,2913.8,2913.7,2.65279]
[1644712119107,0.0039094,2914.3,2913.8,0.00067476]
[1644712119309,0.00962016,2914.2,2913.9,0.495]
[1644712120354,0.0039094,2914.3,2913.9,0.495]
[1644712120556,0.00962082,2914.2,2913.9,0.50462195]
[1644712121559,0.0039094,2914.3,2913.9,0.495]
[1644712121759,0.00962082,2914.2,2913.9,0.80462195]
[1644712122159,0.00962082,2914.2,2913.9,1.10462195]
[1644712122761,0.00391381,2914.4,2913.9,1.095]
[1644712122961,0.00962079,2914.2,2913.9,0.80462192]
[1644712123162,0.00962079,2914.2,2913.9,0.50462192]
[1644712123798,0.00391381,2914.4,2913.9,0.495]
[1644712124199,0.00391381,2914.4,2913.9,0.50462192]
[1644712124200,0.00962079,2914.2,2913.9,0.50462192]
[1644712125003,0.00391381,2914.4,2913.9,0.495]
[1644712125405,0.00962079,2914.2,2913.9,0.50462192]
[1644712126207,0.00391381,2914.4,2913.9,0.795]
[1644712126409,0.00391381,2914.4,2913.9,0.495]
[1644712126611,0.0096208,2914.2,2913.9,0.50462192]
[1644712127456,0.00391381,2914.4,2913.9,0.495]
[1644712127655,0.0096208,2914.2,2913.9,0.50462192]
[1644712128656,0.00391381,2914.4,2913.9,0.495]
[1644712129055,0.0096208,2914.2,2913.9,0.50462192]
[1644712129754,0.0096208,2914.2,2914.0,0.85778]
[1644712129956,0.00391381,2914.4,2914.0,0.85778]
[1644712130157,0.0096208,2914.2,2914.0,0.85778]
[1644712131000,0.00391381,2914.4,2914.0,0.85778]
[1644712131398,0.00962074,2914.2,2914.0,0.85778]
[1644712133502,0.00391381,2914.4,2914.0,0.85778]
[1644712133701,0.00962073,2914.2,2914.0,0.85778]
[1644712134762,0.00391381,2914.4,2914.0,0.85778]
[1644712134954,0.00962073,2914.2,2914.0,1.35278]
[1644712135957,0.00391381,2914.4,2914.0,1.35278]
[1644712136155,0.00962073,2914.2,2914.0,1.35278]
[1644712137157,0.00391381,2914.4,2914.0,1.35278]
[1644712137358,0.00962073,2914.2,2914.0,1.35278]
[1644712138360,0.00391381,2914.4,2914.0,1.35278]
[1644712138593,0.00962073,2914.2,2914.0,1.35278]
[1644712139399,0.00391381,2914.4,2914.0,1.35278]
[1644712139800,0.00962073,2914.2,2914.0,1.35278]
[1644712140602,0.00391381,2914.4,2914.0,1.35278]
[1644712141001,0.00962073,2914.2,2914.0,1.35278]
[1644712141902,0.00391381,2914.4,2914.0,1.35278]
[1644712142105,0.00962073,2914.2,2914.0,1.35278]
[1644712143149,0.00391381,2914.4,2914.0,1.35278]
[1644712143349,0.00962073,2914.2,2914.0,1.35278]
[1644712143549,0.0239977,2914.2,2914.0,1.35278]
[1644712144249,0.01538,2914.2,2914.0,1.65278]
[1644712144451,0.01538,2914.2,2914.0,2.95278]
[1644712144658,4.25442363,2915.4,2914.1,19.61708483]
[1644712144852,0.1715,2915.9,2914.1,19.61708483]
[1644712144853,0.1715,2915.9,2914.8,6.185]
[1644712145053,1.45925284,2915.8,2915.1,0.8572]
[1644712145250,1.45925284,2915.7,2915.1,0.8572]
[1644712145451,12.87155113,2916.1,2915.2,0.795]
[1644712145651,1.45913656,2916.0,2915.2,0.795]
[1644712146899,0.00639312,2915.7,2915.2,0.795]
[1644712147904,10.9933,2916.1,2915.2,0.795]
[1644712148104,0.01016234,2915.6,2915.2,0.795]
[1644712149107,10.9933,2916.1,2915.2,0.795]
[1644712149305,1.45904681,2916.0,2915.2,0.9663]
[1644712150855,1.45904681,2916.0,2915.3,3.5]
[1644712151058,3.3418,2916.1,2915.8,6.185]
[1644712151253,3.3418,2916.1,2915.9,1.35194]
[1644712151453,0.1713,2916.6,2915.9,2.35194]
[1644712151653,1.45881283,2916.5,2915.9,2.35194]
[1644712151852,0.01015452,2916.1,2915.9,2.35194]
[1644712152656,0.1713,2916.6,2915.9,3.20902]
[1644712153057,0.21191172,2916.6,2916.1,1.7141]
[1644712153357,0.21191172,2916.6,2916.3,0.85703]
[1644712153599,0.21191172,2916.6,2916.4,0.495]
[1644712154002,0.1213,2916.6,2916.4,0.495]
[1644712154199,0.13145387,2916.6,2916.4,0.495]
[1644712154597,0.01015387,2916.6,2916.4,0.495]
[1644712155199,3.2311,2917.1,2916.4,0.495]
[1644712155403,0.01015381,2916.6,2916.4,3.90677685]
[1644712155603,0.01015381,2916.6,2916.4,0.495]
[1644712156005,3.27170913,2917.1,2916.5,2.7]
[1644712156204,0.04060913,2917.1,2916.6,0.25293483]
[1644712156403,7.48,2917.4,2916.6,1.74793483]
[1644712156603,7.48,2917.4,2916.6,0.74793483]
[1644712156805,7.48,2917.4,2916.6,1.74793483]
[1644712158054,7.48,2917.4,2916.6,6.85583176]
[1644712159556,0.00393375,2917.3,2916.6,6.85583176]
[1644712159956,0.00393375,2917.3,2916.7,0.85689]
[1644712160263,0.01015844,2917.1,2916.8,5.56497814]
[1644712160455,0.01015844,2917.1,2916.8,2.20872]
[1644712161102,0.00393375,2917.3,2916.8,3.20872]
[1644712161300,0.01015844,2917.1,2916.8,3.50872]
[1644712161903,0.01015844,2917.1,2916.8,6.92026217]
[1644712162206,0.00393375,2917.3,2916.9,6.485]
[1644712162404,12.64587311,2918.5,2917.0,5.03671964]
[1644712162405,0.00393375,2917.5,2917.0,5.03671964]
[1644712162605,0.01015844,2917.1,2917.0,5.03671964]
[1644712163208,0.01015844,2917.1,2917.0,1.495]
[1644712163607,0.17523375,2917.8,2917.0,1.495]
[1644712163807,0.01015831,2917.2,2917.0,1.495]
[1644712164607,0.00393375,2917.6,2917.0,1.495]
[1644712164850,0.01015824,2917.2,2917.0,1.495]
[1644712165856,0.00393375,2917.6,2917.0,1.495]
[1644712166054,0.01015824,2917.2,2917.0,1.495]
[1644712166455,0.01015824,2917.2,2917.0,0.495]
[1644712167055,0.85627449,2917.2,2916.5,1.7139]
[1644712167262,0.85627449,2917.2,2916.1,0.4213]
[1644712167263,0.86643273,2917.2,2916.1,0.4213]
[1644712167458,0.00393375,2917.1,2916.1,0.25]
[1644712167657,0.1713,2917.1,2915.9,0.495]
[1644712167855,0.00393375,2917.0,2915.9,0.495]
[1644712168500,1.09687841,2916.7,2916.1,0.85717]
[1644712168700,0.00393375,2916.6,2916.1,0.85717]
[1644712168900,0.00393375,2916.6,2915.7,1.0]
[1644712168901,0.00393375,2916.6,2915.8,1.0]
[1644712169200,0.00393375,2916.6,2915.7,1.0]
[1644712169400,0.00393375,2916.6,2915.6,0.495]
[1644712169804,0.00393375,2916.6,2915.6,0.795]
[1644712171203,0.00393375,2916.6,2915.6,0.96645]
[1644712171408,0.00393375,2916.6,2915.6,0.795]
[1644712172257,0.86920004,2916.2,2915.6,0.495]
[1644712172457,0.00393375,2916.1,2915.6,0.495]
[1644712172856,0.0101578,2916.7,2915.6,0.495]
[1644712173055,0.1713,2916.9,2915.6,0.495]
[1644712173262,0.01015725,2916.7,2915.6,0.495]
[1644712173657,1.12111475,2916.2,2915.6,0.495]
[1644712173956,0.00393375,2916.1,2915.6,0.495]
[1644712174157,0.00393375,2916.1,2915.6,0.66644]
[1644712174356,0.1713,2916.6,2915.6,0.66644]
[1644712174357,0.00393375,2916.5,2915.6,0.66644]
[1644712174558,0.00393375,2916.5,2915.6,0.83774]
[1644712175764,0.9447565,2916.7,2915.6,0.6663]
[1644712175765,0.17523375,2916.6,2915.6,0.6663]
[1644712176295,1.07917908,2916.2,2915.6,0.6663]
[1644712176498,0.00393375,2916.1,2915.6,0.495]
[1644712177299,0.00393375,2916.5,2915.6,0.495]
[1644712177705,0.00393375,2916.5,2915.7,3.57734026]
[1644712177904,0.00393375,2916.5,2916.2,6.185]
[1644712178102,0.01015769,2916.7,2916.3,0.495]
[1644712178305,0.01015769,2916.7,2916.3,1.495]
[1644712178501,0.01015769,2916.7,2916.3,1.795]
[1644712178902,0.01015769,2916.7,2916.3,1.495]
[1644712179105,0.00393375,2917.1,2916.3,1.495]
[1644712179106,0.00393375,2917.1,2916.3,0.495]
[1644712179302,0.00393375,2917.1,2916.3,1.495]
[1644712179502,0.00393375,2917.1,2916.3,0.495]